Cogmind - Beta 11.1 @@@ ROGUE MODE // 2022.07.20 @ 16:17:50 Player: Mombamambo Result: Destroyed by as-20957 with Assembled Blade Performance ------------- Evolutions (0) 0 Regions Visited (2) 400 Robots Destroyed (13) 65 Value Destroyed (207) 207 Prototype IDs (0) 0 Alien Tech Used (0) 0 Bonus (0) 0 TOTAL SCORE: 672 Bonus ------- None Cogmind --------- Core Integrity 0/250 Matter 242/300 Energy 140/140 System Corruption 15% Temperature Cool (26) Movement Walking (120) Location -10/Mines Parts ------- > --- POWER (1) -------- Light Deuterium Engine > --- PROPULSION (2) --- Carbon-fiber Leg > --- UTILITY (2) ------ Small Storage Unit > --- WEAPON (2) ------- Particle Gun Scythe > --- INVENTORY (8) ---- Improved Heat Sink Machine Analyzer Recoil Stabilizer Hardened Medium Armor Plating Heavy Particle Cannon Peak State ------------ > --- POWER ------------ Light Ion Engine > --- PROPULSION ------- Carbon-fiber Leg Flight Unit > --- UTILITY ---------- Small Storage Unit Weight Redist. System > --- WEAPON ----------- Particle Gun Improved Grenade Launcher > --- INVENTORY -------- Light Deuterium Engine Improved Heat Sink Machine Analyzer Recoil Stabilizer Hardened Medium Armor Plating Heavy Particle Cannon Light Assault Rifle Scythe [Rating: 15] Favorites ----------- Power Light Ion Engine Engine Light Ion Engine Propulsion Flight Unit Leg Carbon-fiber Leg Wheel Compact Wheel Flight Unit Flight Unit Utility Small Storage Unit Device Weight Redist. System Storage Small Storage Unit Weapon Light Assault Rifle Energy Gun Particle Gun Ballistic Gun Light Assault Rifle Launcher Improved Grenade Launcher Slashing Weapon Scythe Build | -11 -10 -10 ------- Run | Scr Mat Min Slots Evolved . | . . . Power . | . . . Propulsion . | . . . Utility . | . . . Weapon . | . . . Parts Attached 31 | 6 10 15 Power 3 | 1 . 2 Engine 3 | 1 . 2 Core . | . . . Reactor . | . . . Propulsion 9 | 2 3 4 Treads . | . . . Leg 1 | . . 1 Wheel 2 | 2 . . Hover . | . . . Flight 6 | . 3 3 Utility 3 | 1 2 . Device 1 | . 1 . Storage 2 | 1 1 . Processor . | . . . Hackware . | . . . Protection . | . . . Artifact . | . . . Weapon 16 | 2 5 9 Energy Gun 5 | 1 2 2 Energy Cannon . | . . . Ballistic Gun 8 | 1 3 4 Ballistic Cannon . | . . . Launcher 1 | . . 1 Special Weapon . | . . . Impact Weapon . | . . . Slashing Weapon 2 | . . 2 Piercing Weapon . | . . . Special Melee Weapon . | . . . Unidentified Prototypes . | . . . Parts Lost 8 | . . 8 Power 2 | . . 2 Propulsion 3 | . . 3 Utility 1 | . . 1 Weapon 2 | . . 2 Highest Loss Streak 5 | . . 5 To Critical Strikes . | . . . Average Slot Usage (%) 91 | . 82 94 Engine 13 | . 14 13 Leg 4 | . . 5 Wheel 2 | . 12 . Flight 19 | . 15 21 Device 10 | . 4 12 Storage 14 | . 18 14 Energy Gun 7 | . 8 7 Ballistic Gun 15 | . 8 18 Naked Turns . | . . . Heaviest Build 17 | 11 16 17 Greatest Support 32 | 32 32 21 Greatest Overweight (x) 1 | 1 1 1 Average Overweight (x) . | . . . Largest Inventory Capacity 8 | 8 8 8 Average Capacity 7 | 6 8 8 Most Carried 8 | 1 8 8 Average Carried 6 | . 3 7 Final Capacity 8 | 8 8 8 Final Carried 8 | 1 8 5 Class Distribution -------------------- 76% | Scavenger-Mutant 23% | Mutant Dominant Class ---------------- Mutant | -10/Materials Scavenger-Mutant | -10/Mines Resources | -11 -10 -10 ----------- Run | Scr Mat Min Matter Collected 531 | 246 102 183 Remotely . | . . . Salvage Created 369 | . 123 246 Parts 29 | . 14 15 Haulers Intercepted 1 | . 1 . Recyclers Shooed . | . . . Parts Field Recycled . | . . . Retrieved Matter . | . . . Parts Self-Destructed . | . . . Prevented . | . . . Kills | -11 -10 -10 ------- Run | Scr Mat Min Combat Hostiles Destroyed 22 | . 4 18 Melee 4 | . . 4 Guns 15 | . 4 11 AOE 3 | . . 3 Classes Destroyed 4 | . 3 1 Hauler 1 | . 1 . Swarmer 9 | . 3 6 Grunt 3 | . 1 2 Assembled 10 | . . 10 Best Kill Streak 10 | . 4 10 Combat Bots Only 10 | . 4 10 Max Kills in Single Turn 2 | . 2 1 Gunslinging 1 | . 1 . Exploded 1 | . . 1 Melee 1 | . . 1 Uniques/NPCs Destroyed . | . . . Combat | -11 -10 -10 -------- Run | Scr Mat Min Damage Taken 818 | . 60 758 Core 250 | . 20 230 Absorbed by Shields . | . . . Core Remaining (%) 100 | 100 . . Volleys Fired 40 | . 11 29 Largest 2 | . 2 2 Hottest 101 | . 60 101 Shots Fired 76 | . 22 54 Gun 73 | . 22 51 Cannon . | . . . Launcher 3 | . . 3 Special . | . . . Kinetic 46 | . 11 35 Thermal 27 | . 11 16 Explosive 3 | . . 3 Electromagnetic . | . . . Robot Hit Streak 16 | . 4 16 Robot Miss Streak 4 | . 3 4 Penetration Max . | . . . Secondary Targets 5 | . 1 4 Max Gunslinging Chain 1 | . 1 1 Shots Hit Robots 51 | . 14 37 Core Hits 37 | . 6 31 Critical Kills . | . . . Critical Parts Destroyed . | . . . Critical Strikes . | . . . Melee Attacks 4 | . . 4 Impact . | . . . Slashing 4 | . . 4 Piercing . | . . . Sneak Attacks . | . . . Combat Hostiles . | . . . Follow-up Attacks . | . . . Damage Inflicted 1042 | . 185 857 Guns 517 | . 185 332 Cannons . | . . . Explosions 368 | . . 368 Melee 157 | . . 157 Ramming . | . . . Kinetic 344 | . 115 229 Thermal 173 | . 70 103 Explosive 368 | . . 368 Electromagnetic . | . . . Impact . | . . . Slashing 157 | . . 157 Piercing . | . . . Highest Corruption 15 | . . 15 Average Corruption 13 | . . 13 Corruption Purged . | . . . Corruption Blocked . | . . . Effects 2 | . . 2 Message Errors 1 | . . 1 Data Loss (major) 1 | . . 1 Overload Shots . | . . . Overflow Damage . | . . . Projectiles . | . . . Explosions . | . . . Melee . | . . . Knockbacks . | . . . Impact . | . . . Kinetic . | . . . Secondary . | . . . Self-Inflicted Damage 22 | . . 22 Shots 1 | . . 1 Rammed . | . . . Targets Rammed . | . . . Kicked . | . . . Crushed . | . . . Highest Temperature 220 | . 30 220 Average Temperature 48 | . 12 58 Received Heat Transfer 201 | . 12 189 Siege Activations . | . . . Robots Corrupted . | . . . Combat Hostiles . | . . . Parts Fried . | . . . Impact Corruptions . | . . . Robots Melted . | . . . Combat Hostiles . | . . . Parts Melted . | . . . Heat Transferred 398 | . 150 248 Parts Sabotaged . | . . . Parts Stolen . | . . . Parts Stripped . | . . . Power Chain Reactions . | . . . Missiles Intercepted . | . . . Alert | -11 -10 -10 ------- Run | Scr Mat Min Peak Influence 329 | . 127 329 Initial 49 | . . 49 Average 162 | . 79 208 Maximum Alert Level 1 | . . 1 Low Security (%) 61 | 100 100 44 Level 1 38 | . . 55 Level 2 . | . . . Level 3 . | . . . Level 4 . | . . . Level 5 . | . . . High Security . | . . . Max Security . | . . . Squads Dispatched 2 | . 1 1 Investigation 1 | . . 1 Extermination . | . . . Reinforcement 1 | . 1 . Assault . | . . . Garrison . | . . . Intercept . | . . . Searches Triggered . | . . . Construction Impeded . | . . . Haulers Reinforced . | . . . Active Scanning Responses . | . . . Cargo Convoy Interrupts . | . . . Stealth | -11 -10 -10 --------- Run | Scr Mat Min Distress Signals . | . . . Communications Jammed . | . . . Distress Signals . | . . . Times Spotted 36 | . 8 28 Peak Tracking Total 10 | . 6 10 Tactical Retreats 2 | . . 2 Traps | -11 -10 -10 ------- Run | Scr Mat Min Traps Triggered . | . . . Indirectly . | . . . Trap Hack Attempts . | . . . Triggered . | . . . Disarmed . | . . . Reprogrammed . | . . . Reused . | . . . Traps Extracted . | . . . Installed . | . . . Triggered . | . . . Machines | -11 -10 -10 ---------- Run | Scr Mat Min Machines Disabled . | . . . Max in Single Turn . | . . . Machines Sabotaged . | . . . Garrisons Compromised . | . . . Overloaded Fab Kills . | . . . Hacking | -11 -10 -10 --------- Run | Scr Mat Min Machines Accessed 2 | . . 2 Terminals . | . . . Fabricators . | . . . Repair Stations . | . . . Recycling Units . | . . . Scanalyzers . | . . . Garrison Access . | . . . Total Hacks 2 | . . 2 Successful 2 | . . 2 Failed . | . . . Catastrophic . | . . . Database Lockouts . | . . . Manual . | . . . Terminals . | . . . Fabricators . | . . . Repair Stations . | . . . Recycling Units . | . . . Scanalyzers . | . . . Garrison Access . | . . . Terminal Hacks 2 | . . 2 Open Door 2 | . . 2 Fabricator Hacks . | . . . Repair Station Hacks . | . . . Recycling Unit Hacks . | . . . Scanalyzer . | . . . Garrison Access Hacks . | . . . Unauthorized Hacks . | . . . Terminals . | . . . Fabricators . | . . . Repair Stations . | . . . Recycling Units . | . . . Scanalyzers . | . . . Garrison Access . | . . . Data Cores Recovered . | . . . Used . | . . . Hacking Detections . | . . . Full Trace Events . | . . . Feedback Events . | . . . Feedback Blocked . | . . . Robot Schematics Acquired . | . . . Robots Built . | . . . Authchips . | . . . Time . | . . . Total Robot Build Rating . | . . . Part Schematics Acquired . | . . . Parts Built . | . . . Authchips . | . . . Time . | . . . Total Part Build Rating . | . . . Parts Repaired . | . . . Time . | . . . Parts Recycled . | . . . Recycled Matter . | . . . Retrieved Matter . | . . . Retrieved Components . | . . . Parts Scanalyzed . | . . . Part Schematics Acquired . | . . . Parts Damaged . | . . . Bothacking | -11 -10 -10 ------------ Run | Scr Mat Min Used RIF Installer . | . . . Robots Hacked . | . . . Non-combat . | . . . Combat . | . . . Robot Hacks Applied . | . . . Relay Couplers Released . | . . . Fabnet Peak Effective % . | . . . Robots Rewired . | . . . Allies Hacked . | . . . Hacks Repelled . | . . . Allies | -11 -10 -10 -------- Run | Scr Mat Min Total Allies . | . . . Largest Group . | . . . Highest-Rated Group . | . . . Highest-Rated Ally . | . . . Total Orders . | . . . Ally Attacks . | . . . Total Damage . | . . . Kills . | . . . Allies Corrupted . | . . . Allies Melted . | . . . Intel | -11 -10 -10 ------- Run | Scr Mat Min Robot Analysis Total . | . . . Derelict Logs Recovered 1 | . . 1 Drone Launches . | . . . Drone Recoveries . | . . . Exploration | -11 -10 -10 ------------- Run | Scr Mat Min Turns Passed 485 | 40 106 339 Spaces Moved 538 | 33 94 411 Core 9 | 9 . . Treads . | . . . Legs 71 | . . 71 Wheels 45 | 24 21 . Hover . | . . . Flight 413 | . 73 340 Fastest Speed 37 | 50 37 37 Average Speed 54 | 92 53 51 Slowest Speed 190 | 100 125 190 Overloaded Moves . | . . . Propulsion Burnouts . | . . . Robots Hopped 1 | . . 1 Cave-ins Triggered . | . . . Exploration Rate (%) 35 | 3 26 77 Regions Visited 2 Branch Regions 1 Pre-discovered Areas . | . . . Known Exits Taken . | . . . Unknown Exits Taken 2 | 1 1 . Scrap Searched 1 | . . 1 Spaces Dug . | . . . Terrain Destroyed 50 | . . 50 Melee . | . . . Projectile . | . . . AOE 50 | . . 50 Terrain Rammed . | . . . Walls Destroyed . | . . . Machines Disabled . | . . . Actions | -11 -10 -10 --------- Run | Scr Mat Min Total 656 | 39 128 489 Wait 3 | . 2 1 Move 534 | 32 93 409 Hop 1 | . . 1 Pick Up 19 | 1 3 15 Fast Attach 12 | 6 4 2 Attach 13 | . 4 9 Detach 9 | . 7 2 Swap 6 | . 2 4 Drop 15 | . 2 13 Fire 40 | . 11 29 Melee 4 | . . 4 Ram . | . . . Kick . | . . . Crush . | . . . Escape Stasis . | . . . Rewire . | . . . Trap . | . . . Miscellaneous . | . . . Route ------- -11/Scrapyard -10/Materials -10/Mines History --------- Turn | Location | Event 25 | -11/Scrapyard | Discovered new exit (range 14) 41 | -11/Scrapyard | Entered Materials 107 | -10/Materials | Discovered new exit (range 16) 147 | -10/Materials | Entered Mines 156 | -10/Mines | Met a Derelict bent on vengeance 206 | -10/Mines | Learned 2 Materials zone layouts 232 | -10/Mines | Found the Drone Emporium 234 | -10/Mines | Found Prototype Device 345 | -10/Mines | Met a Derelict shopkeep closing up shop 353 | -10/Mines | Lost 3 parts (1p2n) 394 | -10/Mines | Build established: Scavenger-Mutant 419 | -10/Mines | Assembled infested the area 424 | -10/Mines | Assisted by a Guerilla fighting off Assembled 443 | -10/Mines | Core integrity fell below 50% 447 | -10/Mines | System corruption reached 10% 472 | -10/Mines | Core integrity fell below 20% 486 | -10/Mines | Destroyed by as-20957 with Assembled Blade Last Messages --------------- 00476_ K-01 Serf collects debris. 00476_ Acquired 4 matter. 00477_ The unstable cave ceiling collapses. 00477_ as-91659 destroyed. 00478_ The unstable cave ceiling collapses. 00478_ K-01 Serf collects debris. 00478_ U-05 Engineer lays Concrete. 00480_ The unstable cave ceiling collapses. 00480_ K-01 Serf collects debris. 00480_ Acquired 10 matter. 00480_ U-05 Engineer lays Concrete. 00481_ K-01 Serf collects debris. 00481_ Acquired 8 matter. 00482_ Acquired 13 matter. 00482_ U-05 Engineer lays Concrete. 00482_ K-01 Serf collects debris. 00483_ U-05 Engineer lays Concrete. 00484_ The unstable cave ceiling collapses. 00484_ U-05 Engineer lays Concrete. 00485_ K-01 Serf collects debris. Map ----- +----------------------------------------------------+ | #??????# ## ## #### ##?????? | | ##??????# ## ##??? ????? | | #???????## ###### #???? #?##???? | | #???????## ## ##??## #???? ##?????? | | #???????####?## ##### #???# #?????? | | #?????????????# # #?## #?????? | | #?????????????## ## ### ### #??????? | | ##??????????????####### #?# #???????? | | ##??????????????????#### #?# ### #???????? | | #???????????????????# #?# #?## ##???????? | | ????????????????# ####?# #??# ##????????? | | ????????????????# #????# #??# #?????????? | | ### ?????????????????# #????## ##??# ###???????? | | ##??#??????????????????# #?????###???# #???????? | | #????????????????????###=#####???###?### #???????? | | #???????????????????##;; ;;;"#??## ##?# #???????? | | ####????????????????#;* =k "#??# ## #???????? | | ?????????????????; =! "#???# ##??????? | | ?????????????????#%== "#???### #??????? | | "??????????????#######tu ;#?????## ###??????? | | ????????# *!%[ #??????### #????????? | | ??????????############ k ????????# #????????? | | ??????????#""""""#??# # # ##????????# #????????? | | ??????????# [! ! ##### ##?????? ???????? | | ??????????##=| [### # #?????# ?????? | | ???????????# ## @ ## #?????# ???? | | ??????????### ## a% ;#####?# #??? | | ??????????# X % a ### """ """ #??? | | ??????????# ### #### aa # """ """ #??? | | ??????????# ##?## ### # #%""" """ #??? | | ??????????## ##???###;## # ? #??? | | ###????????## ####??????? # #######?????? | | ##????????#####??????????## #???????????? | | ##???????????????????????# % ##???????????? | | #???????????????????????# #????????????? | | #???????????????????????# ##????????????? | | #???????????????????????# # ##?????????????? | | ##??????????????????????##### ??????????????? | | #??????????????????????????## ??????????????? | | #???????????????????????????? ??????????????? | | ##??????????????????????????? ??????????????? | | #??????????????????????????? #?????????????? | | #??????????????????????????? ??????????????? | | # ##??###?????????????????????? ??????????????? | | # ####??# ##????????????????????? ??????????????? | | # #??### #????????????????????? ??????????????? | | # #### #?????????????????????????????????????? | | # #???????????????????????????????????????? | | ##### ##???????????????????????????????????????? | | ????# %%#????????????????????????????????????????? | +----------------------------------------------------+ Best States ------------- Heat Dissipation 25 Energy Generation 14 Energy Capacity 140 Matter Stores 290 Matter Capacity 300 Sight Range 16 Terrain Scan Density 10 Additional Mass Support 6 Evasion (%) 62 Item Schematics ----------------- None Robot Schematics ------------------ None Fabricated ------------ Nothing Alien Tech Used ----------------- None Achievements -------------- None Challenges ------------ None Game ------ Seed FortressMobileGreatsword Manual? 0 Play Time 00:13:41 Cumulative 37.6 hours Start 2022.07.20 @ 16:04:36 End 2022.07.20 @ 16:17:50 Sessions 1 Manual Loads 0 Difficulty Rogue Special Mode None Game No. 24 Rogue 24 Adventurer 0 Explorer 0 Win Type - Total 0 Types 0/0/0/0/0/0/0/0/0 Lore% 30 Gallery% 45 Achievement% 33 Wizard Run 0 Options --------- ASCII 0 Keyboard 0 Movement Mouse Keybinds 0 Fullscreen 1 Font 18/SmallcapsGlow Map View 76x50 Tactical HUD 1 Map Filters NONE Filters NONE Steam 1 RUN: 05ea063e-a827-4ab0-99e6-94ab107a19fc